Cogmind - Beta 13 @@@ ROGUE MODE // 2024.03.31 @ 19:05:57 Player: Cheeriohz Result: Destroyed by C-35 Carver with Carbide Saw Performance ------------- Evolutions (5) 2500 Regions Visited (11) 2200 Robots Destroyed (135) 675 Value Destroyed (4957) 4957 Prototype IDs (13) 260 Alien Tech Used (0) 0 Bonus (1775) 1775 TOTAL SCORE: 12367 Bonus ------- High Alert Combat Kills 334 Follower Combat Kills 1582 Network Hubs Disabled 200 Built Enhanced Grunts 300 A7 Reached Mainframe 300 Friendly Fire -941 Cogmind --------- Core Integrity 0/1000 Matter 103/300 Energy 100/100 System Corruption 0% Temperature Cool (0) Movement Core (50) Location -5/Factory Parts ------- > --- POWER (1) -------- (None) > --- PROPULSION (4) --- (None) > --- UTILITY (10) ----- Enhanced Optical Array Advanced Signal Interpreter > --- WEAPON (2) ------- (None) > --- INVENTORY (5) ---- Advanced Signal Interpreter Reaction Control System System Shield Proton Missile Launcher Peak State ------------ > --- POWER ------------ Light Antimatter Reactor > --- PROPULSION ------- Improved Treads Improved Medium Treads Centrium Heavy Treads > --- UTILITY ---------- Huge Storage Unit Enhanced Optical Array Armor Integrity Analyzer Kinecellerator Weapon Cycler Centrium Medium Armor Plating Centrium Medium Armor Plating Hacking Suite > --- WEAPON ----------- KE Penetrator Advanced KE Penetrator > --- INVENTORY -------- Improved Deuterium Engine Enhanced Nuclear Core Improved Treads Improved Medium Treads Improved Cooling System Large Storage Unit Large Battery Large Matter Pod Improved Sensor Array Advanced Sensor Array Improved Signal Interpreter Centrium Medium Armor Plating Tractor Beam Advanced Variable Charge Gun Enhanced Autogun Coil Gun KE Penetrator Advanced KE Penetrator Mini Assault Cannon Proton Missile Launcher Proton Missile Launcher Axe Chainsword [Rating: 94] Favorites ----------- Power Improved Ion Engine Engine Improved Ion Engine Power Core Enhanced Nuclear Core Reactor Light Antimatter Reactor Propulsion Light Treads Treads Light Treads Leg Aluminum Leg Wheel Armored Wheel Hover Unit Airjet Flight Unit VTOL Module Utility Improved Signal Interpreter Device Kinecellerator Storage Huge Storage Unit Processor Improved Signal Interpreter Hackware Hacking Suite Protection Layered Medium Armor Plating Weapon Enhanced Autogun Energy Gun EM Pulse Gun Energy Cannon Ion Cannon Ballistic Gun Enhanced Autogun Ballistic Cannon Mini Assault Cannon Launcher Proton Missile Launcher Slashing Weapon Axe Piercing Weapon Spear Build | -11 -10 -9 -8 -7 -7 -6 -6 -6 -6 -6 -5 ------- Run | Yrd Mat Mat Mat Fac Sto Fac Ext Cet Arc Hub Fac Slots Evolved 10 | . . 2 2 2 . 2 . . . . 2 Power . | . . . . . . . . . . . . Propulsion 2 | . . . 2 . . . . . . . . Utility 8 | . . 2 . 2 . 2 . . . . 2 Weapon . | . . . . . . . . . . . . Parts Attached 173 | . 2 19 34 11 38 9 17 10 4 16 13 Power 18 | . . 3 4 . 5 . 1 . . 2 3 Engine 12 | . . 3 4 . 4 . . . . 1 . Core 5 | . . . . . 1 . . . . 1 3 Reactor 1 | . . . . . . . 1 . . . . Propulsion 53 | . 1 4 17 1 13 3 4 2 2 3 3 Treads 36 | . . 2 10 1 11 1 4 2 2 3 . Leg 4 | . 1 . 3 . . . . . . . . Wheel 3 | . . . . . 1 2 . . . . . Hover 7 | . . 2 4 . 1 . . . . . . Flight 3 | . . . . . . . . . . . 3 Utility 48 | . 1 5 8 3 5 4 8 . 1 8 5 Device 13 | . . 1 1 1 . 4 2 . . 3 1 Storage 3 | . . . 2 . . . . . . . 1 Processor 6 | . . 2 . . 1 . . . . 1 2 Hackware 2 | . . . 1 . . . . . . . 1 Protection 24 | . 1 2 4 2 4 . 6 . 1 4 . Artifact . | . . . . . . . . . . . . Weapon 54 | . . 7 5 7 15 2 4 8 1 3 2 Energy Gun 6 | . . 3 . . 1 . . 1 . 1 . Energy Cannon 3 | . . 1 2 . . . . . . . . Ballistic Gun 28 | . . 2 3 5 8 1 2 4 1 2 . Ballistic Cannon 2 | . . . . . 2 . . . . . . Launcher 8 | . . . . 1 2 1 1 3 . . . Special Weapon . | . . . . . . . . . . . . Impact Weapon . | . . . . . . . . . . . . Slashing Weapon 6 | . . 1 . 1 2 . 1 . . . 1 Piercing Weapon 1 | . . . . . . . . . . . 1 Special Melee Weapon . | . . . . . . . . . . . . Unidentified Prototypes 13 | . . 1 . . 7 . . 3 . 1 1 Corrupted Parts 4 | . . . . . . . . 3 . 1 . System Corruption 33 | . . . . . . . . 30 . 3 . Parts Lost 55 | . 1 3 8 2 6 . 5 2 1 20 7 Power 7 | . . . . . 1 . 1 . . 3 2 Propulsion 21 | . . . 5 . 5 . 1 2 1 5 2 Utility 19 | . . 2 2 1 . . 3 . . 8 3 Weapon 8 | . 1 1 1 1 . . . . . 4 . Highest Loss Streak 12 | . 1 3 6 1 2 . 3 2 1 12 6 To Critical Strikes 1 | . . . . . . . . 1 . . . Average Slot Usage (%) 92 | . 87 87 97 99 97 93 99 93 92 87 31 Engine 5 | . 14 11 8 7 6 6 . . . . . Reactor 1 | . . . . . . . 5 6 6 4 . Treads 20 | . . 11 31 30 25 12 18 19 19 16 . Leg 2 | . 28 9 1 . . . . . . . . Wheel 1 | . . . . . 1 6 6 . . . . Device 8 | . . 1 6 7 . 20 17 13 13 12 4 Storage 7 | . 14 11 9 7 7 6 6 6 6 5 . Processor 10 | . . 10 9 7 14 13 13 13 13 13 11 Hackware 4 | . . . 1 7 7 6 6 6 6 6 7 Protection 11 | . 10 12 8 14 15 6 8 13 13 12 . Energy Gun 1 | . 20 5 . . . . . . . . . Energy Cannon 1 | . . . 5 1 . . . . . . . Ballistic Gun 10 | . . 11 12 12 11 13 11 12 13 11 . Naked Turns . | . . . . . . . . . . . . Heaviest Build 127 | 14 17 28 104 107 108 110 123 127 123 124 8 Greatest Support 133 | 20 20 40 80 80 80 40 40 120 126 133 10 Greatest Overweight (x) 10 | . . 2 1 1 3 9 10 10 1 7 1 Average Overweight (x) 1 | . . . . 1 1 2 7 1 . . . Largest Inventory Capacity 25 | 8 8 8 25 25 25 25 25 25 25 25 5 Average Capacity 19 | 8 8 8 14 25 25 25 25 25 25 24 5 Most Carried 25 | 6 8 8 24 25 25 25 25 25 25 25 5 Average Carried 19 | 6 7 7 13 24 24 24 24 24 24 23 4 Final Capacity 25 | 8 8 8 25 25 25 25 25 25 25 5 5 Final Carried 25 | 6 8 8 24 25 25 25 25 25 25 5 4 Class Distribution -------------------- 65% | Scavenger-Mutant 18% | Mutant 8% | Commander-Mutant 3% | Skirmisher Dominant Class ---------------- Mutant | -10/Materials Mutant | -9/Materials Scavenger-Mutant | -8/Materials Scavenger-Mutant | -7/Factory Scavenger-Mutant | -7/Storage Skirmisher | -6/Factory Commander-Mutant | -6/Extension Scavenger-Mutant | -6/Cetus Scavenger-Mutant | -6/Archives Scavenger-Mutant | -6/Hub_04(d) Hacker-Scout | -5/Factory Resources | -11 -10 -9 -8 -7 -7 -6 -6 -6 -6 -6 -5 ----------- Run | Yrd Mat Mat Mat Fac Sto Fac Ext Cet Arc Hub Fac Matter Collected 4361 | 200 20 299 891 236 1088 199 642 198 103 366 119 Remotely . | . . . . . . . . . . . . Salvage Created 5754 | . 254 546 1007 270 1523 221 503 329 44 938 119 Parts 330 | . 18 34 62 22 85 14 21 13 . 57 4 Haulers Intercepted 8 | . . 1 3 . 4 . . . . . . Recyclers Shooed 2 | . . . 2 . . . . . . . . Parts Field Recycled . | . . . . . . . . . . . . Retrieved Matter . | . . . . . . . . . . . . Parts Self-Destructed . | . . . . . . . . . . . . Prevented . | . . . . . . . . . . . . Kills | -11 -10 -9 -8 -7 -7 -6 -6 -6 -6 -6 -5 ------- Run | Yrd Mat Mat Mat Fac Sto Fac Ext Cet Arc Hub Fac Combat Hostiles Destroyed 95 | . 4 12 20 4 21 6 9 5 1 8 5 Melee 5 | . . . . . . . . . . . 5 Guns 66 | . 3 11 19 3 11 2 9 . 1 7 . Cannons 4 | . . 1 1 . 2 . . . . . . AOE 17 | . 1 . . 1 8 4 . 2 . 1 . Classes Destroyed 14 | . 3 3 3 2 . . 1 . . 2 . Worker 9 | . . . 1 . 2 . . . . 6 . Builder 8 | . 2 . 2 3 1 . . . . . . Hauler 8 | . . 1 3 . 4 . . . . . . Recycler 3 | . . . 1 . 2 . . . . . . Operator 1 | . . . . . . . . . . 1 . Watcher 9 | . 1 . . 2 2 . . 1 . 3 . Swarmer 24 | . . 3 4 . 4 4 2 2 . . 5 Grunt 30 | . 4 4 9 . 6 . 4 . . 3 . Duelist 1 | . . . 1 . . . . . . . . Protector 1 | . . . . . . . . . . 1 . Sentry 26 | . . 5 6 1 7 1 2 . 1 3 . Hunter 3 | . . . . 2 1 . . . . . . Programmer 5 | . . . . 1 3 1 . . . . . Behemoth 1 | . . . . . . . 1 . . . . Cetus Guard 3 | . . . . . . . . 3 . . . Enhanced Grunt 2 | . . . . . . . . . . 2 . Lightning 1 | . . . . . . . . . . 1 . Best Kill Streak 8 | . 2 4 4 2 8 5 5 4 1 8 4 Combat Bots Only 5 | . 2 4 4 2 5 5 5 3 1 4 4 Max Kills in Single Turn 10 | . 1 2 2 1 6 2 1 2 1 10 1 Gunslinging 1 | . . 1 1 . . . . . . . . Exploded 3 | . 1 . . 1 3 2 . 2 . 1 . Melee 1 | . . . . . . . . . . . 1 Uniques/NPCs Destroyed . | . . . . . . . . . . . . Combat | -11 -10 -9 -8 -7 -7 -6 -6 -6 -6 -6 -5 -------- Run | Yrd Mat Mat Mat Fac Sto Fac Ext Cet Arc Hub Fac Hostile Shots Fired 1104 | . 22 61 150 62 317 33 124 20 10 222 83 Missed 334 | . 8 14 44 18 108 4 49 9 1 47 32 Damage Taken 13003 | . 214 560 1655 536 2060 292 968 369 258 4856 1235 Core 2490 | . 26 87 237 38 257 38 89 . . 717 1001 Absorbed by Shields 29 | . . . . . . . 29 . . . . Redirected to Shielding 146 | . . . . 38 29 . 79 . . . . Ignored by Resistances 9 | . . . . . 9 . . . . . . Regen/Repaired (Parts) 173 | . . 3 170 . . . . . . . . Core Remaining (%) 63 | 100 89 78 56 . 57 . . . . . . Volleys Fired 441 | . 21 37 115 24 91 10 55 10 5 73 . Largest 2 | . 2 2 2 2 2 2 2 2 2 2 . Hottest 240 | . 80 108 60 56 96 50 50 78 60 240 . Shots Fired 709 | . 35 52 151 39 165 17 109 15 8 118 . Gun 650 | . 35 50 129 39 142 14 108 7 8 118 . Cannon 38 | . . 2 22 . 14 . . . . . . Launcher 21 | . . . . . 9 3 1 8 . . . Special . | . . . . . . . . . . . . Kinetic 596 | . . 28 129 39 156 14 108 7 8 107 . Thermal 57 | . . 24 22 . . . . . . 11 . Explosive . | . . . . . . . . . . . . Electromagnetic 56 | . 35 . . . 9 3 1 8 . . . Robot Hit Streak 24 | . 7 24 19 8 21 6 7 5 2 11 . Robot Miss Streak 7 | . 3 2 6 4 3 1 6 4 1 7 . Penetration Max 1 | . . . . . . . . . . 1 . Secondary Targets 7 | . . 1 3 . 1 . 1 . . 1 . Max Gunslinging Chain 1 | . . 1 1 . 1 . 1 . . 1 . Shots Hit Robots 497 | . 21 47 109 32 120 11 67 6 5 72 7 Core Hits 270 | . 12 22 55 18 54 9 32 9 5 49 5 Critical Kills 7 | . . . . . 4 . . . . 3 . Critical Parts Destroyed 7 | . . . . 1 2 . . . . 4 . Critical Strikes 16 | . 1 . . 1 7 . . . . 7 . Destroy 14 | . . . . 1 6 . . . . 7 . Blast 1 | . . . . . 1 . . . . . . Corrupt 1 | . 1 . . . . . . . . . . Melee Attacks 53 | . . 8 . 7 2 . 15 . . . 21 Impact . | . . . . . . . . . . . . Slashing 32 | . . 8 . 7 2 . 15 . . . . Piercing 21 | . . . . . . . . . . . 21 Sneak Attacks 4 | . . . . 4 . . . . . . . Combat Hostiles . | . . . . . . . . . . . . Follow-up Attacks . | . . . . . . . . . . . . Damage Inflicted 12723 | . 418 658 2120 833 2526 387 1372 596 147 3445 221 Guns 8805 | . 297 571 1912 433 1692 231 1310 30 147 2182 . Cannons 556 | . . 41 208 . 307 . . . . . . Explosions 2778 | . 113 . . 112 527 156 41 566 . 1263 . Melee 555 | . . 46 . 288 . . . . . . 221 Ramming 29 | . 8 . . . . . 21 . . . . Kinetic 8192 | . . 337 1912 433 1999 231 1310 30 147 1793 . Thermal 1149 | . 113 275 208 23 53 . . 88 . 389 . Explosive . | . . . . . . . . . . . . Electromagnetic 2798 | . 297 . . 89 474 156 41 478 . 1263 . Impact . | . . . . . . . . . . . . Slashing 334 | . . 46 . 288 . . . . . . . Piercing 221 | . . . . . . . . . . . 221 Highest Corruption 90 | . . . . 1 5 1 1 31 31 90 . Average Corruption 12 | . . . . 1 2 1 1 27 31 39 . Corruption Purged . | . . . . . . . . . . . . Corruption Blocked . | . . . . . . . . . . . . Effects 154 | . . . . 1 30 1 8 31 23 60 . Message Errors 28 | . . . . . 5 . 1 13 4 5 . Matter Fused 31 | . . . . 1 10 1 3 3 6 7 . Heat Flow Errors 22 | . . . . . 3 . 1 4 5 9 . Energy Discharges 17 | . . . . . 4 . . 6 2 5 . Data Loss (minor) 12 | . . . . . 2 . 1 4 1 4 . Data Loss (major) 4 | . . . . . 2 . 1 . 1 . . Misfires 10 | . . . . . 3 . 1 1 . 5 . Alerts 2 | . . . . . . . . . . 2 . Misdirections 13 | . . . . . . . . . 3 10 . Weapon Failures 15 | . . . . . 1 . . . 1 13 . Overload Shots 7 | . . . . . . . . . . 7 . Overflow Damage 158 | . 8 . . 40 . . . 10 . 100 . Projectiles . | . . . . . . . . . . . . Explosions 118 | . 8 . . . . . . 10 . 100 . Melee 40 | . . . . 40 . . . . . . . Knockbacks 2 | . . . . . 1 . 1 . . . . Impact 1 | . . . . . . . 1 . . . . Kinetic 1 | . . . . . 1 . . . . . . Secondary . | . . . . . . . . . . . . Self-Inflicted Damage 271 | . 35 . . 107 13 . 10 . . 106 . Shots 5 | . 1 . . 2 1 . . . . 1 . Rammed 1 | . . . . . . . 1 . . . . Targets Rammed 2 | . 1 . . . . . 1 . . . . Kicked 1 | . 1 . . . . . . . . . . Crushed . | . . . . . . . . . . . . Highest Temperature 910 | . 303 93 167 1 260 . 136 265 274 910 . Average Temperature 112 | . 100 23 87 1 45 . 30 81 111 186 . Received Heat Transfer 2479 | . 99 225 882 . 630 . 370 36 36 201 . Effects 23 | . . . . . . . . . 5 18 . Shutdowns 4 | . . . . . . . . . . 4 . Energy Bleed 3 | . . . . . . . . . . 3 . Interference 7 | . . . . . . . . . 5 2 . Matter Decay 3 | . . . . . . . . . . 3 . Short Circuit 2 | . . . . . . . . . . 2 . Damage (minor) 3 | . . . . . . . . . . 3 . Damage (core) 1 | . . . . . . . . . . 1 . Siege Activations . | . . . . . . . . . . . . Robots Corrupted 3 | . . . . . . . . 3 . . . Combat Hostiles 3 | . . . . . . . . 3 . . . Parts Fried 13 | . . . . 1 2 1 . 3 . 6 . Impact Corruptions . | . . . . . . . . . . . . Robots Melted . | . . . . . . . . . . . . Combat Hostiles . | . . . . . . . . . . . . Parts Melted 2 | . . 2 . . . . . . . . . Heat Transferred 1493 | . 50 599 333 50 50 . . 100 . 311 . Parts Sabotaged . | . . . . . . . . . . . . Parts Stolen . | . . . . . . . . . . . . Parts Stripped . | . . . . . . . . . . . . Power Chain Reactions 7 | . 2 . . 1 1 . . 2 . 1 . Alert | -11 -10 -9 -8 -7 -7 -6 -6 -6 -6 -6 -5 ------- Run | Yrd Mat Mat Mat Fac Sto Fac Ext Cet Arc Hub Fac Peak Influence 1338 | . 129 238 231 113 457 298 499 687 477 1338 752 Initial 579 | . . 5 37 66 13 132 145 274 274 166 579 Average 263 | . 43 113 106 49 265 218 280 476 444 727 643 Maximum Alert Level 4 | . . 1 1 . 2 1 2 2 2 4 3 Low Security (%) 49 | 100 100 77 93 100 19 40 32 . . 8 . Level 1 29 | . . 22 6 . 67 59 45 39 18 26 . Level 2 17 | . . . . . 12 . 21 60 81 22 70 Level 3 2 | . . . . . . . . . . 12 29 Level 4 2 | . . . . . . . . . . 29 . Level 5 . | . . . . . . . . . . . . High Security . | . . . . . . . . . . . . Max Security . | . . . . . . . . . . . . Squads Dispatched 22 | . 1 . 2 2 5 1 4 . . 3 4 Investigation 1 | . . . . . . . 1 . . . . Extermination 7 | . . . . 1 3 1 . . . 1 1 Reinforcement 13 | . 1 . 2 1 2 . 3 . . 2 2 Assault 1 | . . . . . . . . . . . 1 Garrison . | . . . . . . . . . . . . Intercept . | . . . . . . . . . . . . Searches Triggered . | . . . . . . . . . . . . Construction Impeded 3 | . . . 1 1 . . 1 . . . . Haulers Reinforced 1 | . . . . . . . . . . 1 . Active Scanning Responses . | . . . . . . . . . . . . Cargo Convoy Interrupts . | . . . . . . . . . . . . Stealth | -11 -10 -9 -8 -7 -7 -6 -6 -6 -6 -6 -5 --------- Run | Yrd Mat Mat Mat Fac Sto Fac Ext Cet Arc Hub Fac Distress Signals 15 | . 1 2 2 . 3 . 4 1 . 2 . Communications Jammed . | . . . . . . . . . . . . Distress Signals . | . . . . . . . . . . . . Times Spotted 185 | . 11 15 31 8 25 6 30 12 7 23 17 Peak Tracking Total 9 | . 4 4 6 2 5 4 7 5 2 9 8 Tactical Retreats 8 | . . 1 1 . 1 . 2 . . 1 2 Traps | -11 -10 -9 -8 -7 -7 -6 -6 -6 -6 -6 -5 ------- Run | Yrd Mat Mat Mat Fac Sto Fac Ext Cet Arc Hub Fac Traps Triggered 5 | . . . 2 . 1 . . . . 1 1 Indirectly 1 | . . . . . 1 . . . . . . Trap Hack Attempts . | . . . . . . . . . . . . Triggered . | . . . . . . . . . . . . Disarmed . | . . . . . . . . . . . . Reprogrammed . | . . . . . . . . . . . . Reused . | . . . . . . . . . . . . Traps Extracted . | . . . . . . . . . . . . Installed . | . . . . . . . . . . . . Triggered . | . . . . . . . . . . . . Machines | -11 -10 -9 -8 -7 -7 -6 -6 -6 -6 -6 -5 ---------- Run | Yrd Mat Mat Mat Fac Sto Fac Ext Cet Arc Hub Fac Machines Disabled 29 | . . . . 1 8 . 1 1 3 15 . Max in Single Turn 11 | . . . . 1 1 . . 1 1 11 . Garrison Access 2 | . . . 1 . . . . . . 1 . Network Hub 1 | . . . . . . . . . . 1 . Machines Repaired . | . . . . . . . . . . . . Machines Dismantled . | . . . . . . . . . . . . Machines Sabotaged . | . . . . . . . . . . . . Overloaded Fab Kills . | . . . . . . . . . . . . Hacking | -11 -10 -9 -8 -7 -7 -6 -6 -6 -6 -6 -5 --------- Run | Yrd Mat Mat Mat Fac Sto Fac Ext Cet Arc Hub Fac Machines Accessed 27 | . 2 4 8 . 3 . 2 3 1 3 1 Terminals 22 | . 2 3 6 . 3 . 2 3 . 2 1 Fabricators . | . . . . . . . . . . . . Repair Stations 2 | . . 1 1 . . . . . . . . Recycling Units . | . . . . . . . . . . . . Scanalyzers . | . . . . . . . . . . . . Garrison Access 2 | . . . 1 . . . . . . 1 . Total Hacks 73 | . 6 9 24 . 3 . 4 6 8 5 8 Successful 38 | . 2 4 11 . 3 . 1 4 8 2 3 Failed 35 | . 4 5 13 . . . 3 2 . 3 5 Catastrophic 9 | . 3 1 . . . . . 1 . 1 3 Database Lockouts . | . . . . . . . . . . . . Manual 36 | . 5 7 14 . . . . 1 2 1 6 Terminals 57 | . 6 7 19 . 3 . 4 6 . 4 8 Fabricators . | . . . . . . . . . . . . Repair Stations 5 | . . 2 3 . . . . . . . . Recycling Units . | . . . . . . . . . . . . Scanalyzers . | . . . . . . . . . . . . Garrison Access 3 | . . . 2 . . . . . . 1 . Terminal Hacks 23 | . . 1 4 . 3 . 1 4 8 1 1 Record 12 | . . . . . . . . 3 8 1 . Open Door 5 | . . . . . 3 . 1 1 . . . Branch Access Points 1 | . . . 1 . . . . . . . . Terminal Index 2 | . . 1 1 . . . . . . . . Locate Traps 1 | . . . 1 . . . . . . . . Zone Layout 2 | . . . 1 . . . . . . . 1 Fabricator Hacks . | . . . . . . . . . . . . Repair Station Hacks 4 | . . 2 2 . . . . . . . . Scan Component 2 | . . 1 1 . . . . . . . . Repair 2 | . . 1 1 . . . . . . . . Recycling Unit Hacks . | . . . . . . . . . . . . Scanalyzer . | . . . . . . . . . . . . Garrison Access Hacks 2 | . . . 1 . . . . . . 1 . Seal Access 2 | . . . 1 . . . . . . 1 . Unauthorized Hacks 9 | . 2 1 4 . . . . . . . 2 Terminals 9 | . 2 1 4 . . . . . . . 2 Track 1 | . . . . . . . . . . . 1 Botnet 8 | . 2 1 4 . . . . . . . 1 Fabricators . | . . . . . . . . . . . . Repair Stations . | . . . . . . . . . . . . Recycling Units . | . . . . . . . . . . . . Scanalyzers . | . . . . . . . . . . . . Garrison Access . | . . . . . . . . . . . . Data Cores Recovered 1 | . . . . . . . . . . 1 . Used . | . . . . . . . . . . . . Hacking Detections 21 | . 2 4 7 . 1 . 2 2 . 2 1 Full Trace Events 1 | . . . . . . . 1 . . . . Feedback Events . | . . . . . . . . . . . . Feedback Blocked . | . . . . . . . . . . . . Robot Schematics Acquired . | . . . . . . . . . . . . Robots Built . | . . . . . . . . . . . . Authchips . | . . . . . . . . . . . . Time . | . . . . . . . . . . . . Total Robot Build Rating . | . . . . . . . . . . . . Part Schematics Acquired . | . . . . . . . . . . . . Parts Built . | . . . . . . . . . . . . Authchips . | . . . . . . . . . . . . Time . | . . . . . . . . . . . . Total Part Build Rating . | . . . . . . . . . . . . Parts Repaired 2 | . . 1 1 . . . . . . . . Time 74 | . . 36 38 . . . . . . . . Parts Recycled . | . . . . . . . . . . . . Recycled Matter . | . . . . . . . . . . . . Retrieved Matter . | . . . . . . . . . . . . Retrieved Components . | . . . . . . . . . . . . Parts Scanalyzed . | . . . . . . . . . . . . Part Schematics Acquired . | . . . . . . . . . . . . Parts Damaged . | . . . . . . . . . . . . Bothacking | -11 -10 -9 -8 -7 -7 -6 -6 -6 -6 -6 -5 ------------ Run | Yrd Mat Mat Mat Fac Sto Fac Ext Cet Arc Hub Fac Used RIF Installer . | . . . . . . . . . . . . Robots Hacked . | . . . . . . . . . . . . Non-combat . | . . . . . . . . . . . . Combat . | . . . . . . . . . . . . Robot Hacks Applied . | . . . . . . . . . . . . Relay Couplers Released 3 | . . . 3 . . . . . . . . Machine Destruction 3 | . . . 3 . . . . . . . . Fabnet Peak Effective % . | . . . . . . . . . . . . Robots Rewired 9 | . . . . . . . 9 . . . . Allies Hacked . | . . . . . . . . . . . . Hacks Repelled . | . . . . . . . . . . . . Allies | -11 -10 -9 -8 -7 -7 -6 -6 -6 -6 -6 -5 -------- Run | Yrd Mat Mat Mat Fac Sto Fac Ext Cet Arc Hub Fac Total Allies 15 | . . . . . . . 10 5 . . . Largest Group 8 | . . . . . . . 8 7 6 5 . Highest-Rated Group 646 | . . . . . . . 392 646 510 423 . Highest-Rated Ally 159 | . . . . . . . 159 130 96 96 . Total Orders . | . . . . . . . . . . . . Ally Attacks 283 | . . . . . . . 165 46 33 39 . Total Damage 7059 | . . . . . . . 3048 1291 1157 1563 . Kills 51 | . . . . . . . 24 11 4 12 . Allies Corrupted . | . . . . . . . . . . . . Allies Melted 1 | . . . . . . . 1 . . . . Intel | -11 -10 -9 -8 -7 -7 -6 -6 -6 -6 -6 -5 ------- Run | Yrd Mat Mat Mat Fac Sto Fac Ext Cet Arc Hub Fac Robot Analysis Total . | . . . . . . . . . . . . Derelict Logs Recovered . | . . . . . . . . . . . . Drone Launches . | . . . . . . . . . . . . Drone Recoveries . | . . . . . . . . . . . . Exploration | -11 -10 -9 -8 -7 -7 -6 -6 -6 -6 -6 -5 ------------- Run | Yrd Mat Mat Mat Fac Sto Fac Ext Cet Arc Hub Fac Turns Passed 9732 | 2 531 896 1679 971 1627 365 1455 707 365 796 338 Spaces Moved 4573 | 2 338 500 704 333 601 222 582 275 196 376 444 Core 424 | . . . . . . . . . . 40 384 Treads 2368 | . . 238 629 333 386 . . 250 196 336 . Legs 565 | 2 338 188 37 . . . . . . . . Wheels 1044 | . . . . . 215 222 582 25 . . . Hover 112 | . . 74 38 . . . . . . . . Flight 60 | . . . . . . . . . . . 60 Fastest Speed 25 | 120 120 56 48 240 145 125 125 240 160 50 25 Average Speed 164 | 120 120 129 159 240 206 142 207 240 175 155 48 Slowest Speed 400 | 120 120 190 240 240 320 225 240 400 240 400 115 Overloaded Moves 8 | . . . . . . . . . . . 8 Propulsion Burnouts . | . . . . . . . . . . . . Robots Hopped . | . . . . . . . . . . . . Cave-ins Triggered . | . . . . . . . . . . . . Exploration Rate (%) 47 | 2 59 35 59 9 89 8 72 77 94 56 9 Regions Visited 11 Branch Regions 5 Pre-discovered Areas . | . . . . . . . . . . . . Known Exits Taken 9 | . . 1 1 1 1 1 1 1 1 1 . Unknown Exits Taken 2 | 1 1 . . . . . . . . . . Scrap Searched . | . . . . . . . . . . . . Spaces Dug 14 | . . 1 5 3 3 . . . . . 2 Terrain Destroyed 259 | . 7 1 6 4 7 . . 16 2 214 2 Melee 6 | . . 1 . 3 . . . . . . 2 Projectile 50 | . . . 6 1 2 . . 2 2 37 . AOE 201 | . 7 . . . 3 . . 14 . 177 . Terrain Rammed . | . . . . . . . . . . . . Walls Destroyed . | . . . . . . . . . . . . Machines Disabled . | . . . . . . . . . . . . Actions | -11 -10 -9 -8 -7 -7 -6 -6 -6 -6 -6 -5 --------- Run | Yrd Mat Mat Mat Fac Sto Fac Ext Cet Arc Hub Fac Total 6084 | 1 427 676 1112 457 849 259 754 309 212 494 534 Wait 622 | . 63 96 215 70 65 9 37 1 1 21 44 Move 4562 | 1 337 499 703 332 600 221 581 274 195 375 444 Hop . | . . . . . . . . . . . . Pick Up 76 | . 2 4 24 7 14 4 7 6 2 1 5 Fast Attach 71 | . 1 12 16 1 17 2 2 3 2 5 10 Attach 35 | . . 2 4 4 3 2 6 1 . 10 3 Detach 15 | . . 3 4 1 3 . 1 . . 1 2 Swap 67 | . 1 5 14 6 18 5 9 6 2 1 . Drop 107 | . 1 10 17 5 36 6 7 8 5 7 5 Fire 441 | . 21 37 115 24 91 10 55 10 5 73 . Melee 53 | . . 8 . 7 2 . 15 . . . 21 Ram 1 | . . . . . . . 1 . . . . Kick 1 | . 1 . . . . . . . . . . Crush . | . . . . . . . . . . . . Escape Stasis . | . . . . . . . . . . . . Rewire 33 | . . . . . . . 33 . . . . Trap . | . . . . . . . . . . . . Miscellaneous . | . . . . . . . . . . . . Route ------- -11/Scrapyard -10/Materials (discovered 3 exits: *Mat x3) -9/Materials (discovered 2 exits: *Mat / [*Min]) -8/Materials -7/Factory -7/Storage -6/Factory -6/Extension (discovered 2 exits: *Fac / *Cet) -6/Cetus -6/Archives (discovered 3 exits: *Fac / *Hub x2) -6/Hub_04(d) (discovered 3 exits: *Fac x3) -5/Factory History --------- Turn | Location | Event 1 | -11/Scrapyard | Discovered new exit (range 1) 3 | -11/Scrapyard | Entered Materials 91 | -10/Materials | Discovered new exit (range 12) 304 | -10/Materials | Build established: Mutant 311 | -10/Materials | Discovered new exit (range 5) 488 | -10/Materials | Discovered new exit (range 15) 534 | -10/Materials | Entered another Materials area 534 | -9/Materials | Evolved 2 slots: Utility x2 614 | -9/Materials | Repaired Corrupted Sensor Array 809 | -9/Materials | Lost 3 parts (2u1w) 1059 | -9/Materials | Discovered new exit (range 11) 1250 | -9/Materials | Discovered new exit (range 12) 1306 | -9/Materials | Build established: Scavenger-Mutant 1428 | -9/Materials | Identified exit to Materials 1430 | -9/Materials | Entered another Materials area 1430 | -8/Materials | Evolved 2 slots: Propulsion x2 1570 | -8/Materials | Lost 6 parts (4n2u) 2506 | -8/Materials | Repaired Hrd. Medium Armor Plating 3095 | -8/Materials | Discovered new exit (range 5) 3102 | -8/Materials | Identified exit to Factory 3109 | -8/Materials | Entered Factory 3109 | -7/Factory | Evolved 2 slots: Utility x2 4023 | -7/Factory | Discovered new exit (range 9) 4078 | -7/Factory | Identified exit to Storage 4080 | -7/Factory | Entered Storage 5579 | -7/Storage | Build established: Mutant 5633 | -7/Storage | Discovered new exit (range 11) 5706 | -7/Storage | Identified exit to Factory 5707 | -7/Storage | Entered Factory 5707 | -6/Factory | Evolved 2 slots: Utility x2 5871 | -6/Factory | Discovered new exit (range 16) 5901 | -6/Factory | Identified exit to Extension 6072 | -6/Factory | Build established: Skirmisher 6072 | -6/Factory | Entered Extension 6224 | -6/Extension | Lost 3 parts (1n2u) 6544 | -6/Extension | Rescued A7 6660 | -6/Extension | Spotted B-75 Beast 6665 | -6/Extension | Build established: Commander-Mutant 7169 | -6/Extension | Allies destroyed B-75 Beast 7176 | -6/Extension | Spotted B-75 Beast 7194 | -6/Extension | Destroyed B-75 Beast 7482 | -6/Extension | Discovered new exit (range 15) 7484 | -6/Extension | Discovered new exit (range 15) 7523 | -6/Extension | Identified exit to Cetus 7527 | -6/Extension | Entered Cetus 7527 | -6/Cetus | Accompanied by 5 allies (A7) 7530 | -6/Cetus | Build established: Scavenger-Mutant 7532 | -6/Cetus | Acquired a Cetus Manufacturing Module code from A7 7556 | -6/Cetus | Spotted Cetus Guard 7556 | -6/Cetus | Spotted Cetus Guard 7559 | -6/Cetus | Spotted Cetus Guard 7564 | -6/Cetus | Spotted Cetus Guard 7568 | -6/Cetus | Allies destroyed Cetus Guard 7571 | -6/Cetus | Destroyed Cetus Guard 7575 | -6/Cetus | Destroyed Cetus Guard 7578 | -6/Cetus | Destroyed Cetus Guard 7596 | -6/Cetus | Lost 3 allies 7606 | -6/Cetus | System corruption reached 10% 7630 | -6/Cetus | System corruption reached 30% 7747 | -6/Cetus | Started Cetus Manufacturing Module 7762 | -6/Cetus | Escorted A7 to Cetus Mainframe 7772 | -6/Cetus | Manufactured an Enhanced Grunt 7797 | -6/Cetus | Manufactured an Enhanced Grunt 7822 | -6/Cetus | Manufactured an Enhanced Grunt 7846 | -6/Cetus | Discovered new exit (range 16) 7847 | -6/Cetus | Manufactured an Enhanced Grunt 7872 | -6/Cetus | Manufactured an Enhanced Grunt 7879 | -6/Cetus | Identified exit to Archives 8046 | -6/Cetus | Extracted ID and sensor layout for unrecognized location from A7's data core 8234 | -6/Cetus | Entered Archives 8234 | -6/Archives | Accompanied by 6 allies 8344 | -6/Archives | Discovered new exit (range 14) 8368 | -6/Archives | Discovered new exit (range 16) 8403 | -6/Archives | Identified exit to Hub_04(d) 8484 | -6/Archives | Unable to access archive contents 8500 | -6/Archives | Unable to access archive contents 8502 | -6/Archives | Discovered new exit (range 16) 8516 | -6/Archives | Unable to access archive contents 8543 | -6/Archives | Identified exit to Factory 8599 | -6/Archives | Entered Hub_04(d) 8599 | -6/Hub_04(d) | Accompanied by 5 allies 8661 | -6/Hub_04(d) | Discovered exit to Factory (range 6) 8827 | -6/Hub_04(d) | Spotted B-75 Beast 8834 | -6/Hub_04(d) | Allies destroyed B-75 Beast 9069 | -6/Hub_04(d) | Discovered exit to Factory (range 7) 9162 | -6/Hub_04(d) | Network Hub disabled 9162 | -6/Hub_04(d) | Discovered exit to Factory (range 19) 9171 | -6/Hub_04(d) | Spotted Lightning 9172 | -6/Hub_04(d) | Spotted Lightning 9174 | -6/Hub_04(d) | Spotted Lightning 9199 | -6/Hub_04(d) | Lost 3 allies 9258 | -6/Hub_04(d) | Lost 6 parts (1p2n2u1w) 9294 | -6/Hub_04(d) | Destroyed Lightning 9363 | -6/Hub_04(d) | Core integrity fell below 50% 9380 | -6/Hub_04(d) | Core integrity fell below 20% 9395 | -6/Hub_04(d) | Entered Factory 9395 | -5/Factory | Evolved 2 slots: Utility x2 9407 | -5/Factory | Lost 12 parts (2p2n5u3w) 9688 | -5/Factory | Core integrity fell below 50% 9695 | -5/Factory | First assault squad dispatched 9721 | -5/Factory | Core integrity fell below 20% 9724 | -5/Factory | Lost 6 parts (2p2n2u) 9733 | -5/Factory | Destroyed by C-35 Carver with Carbide Saw Last Messages --------------- 09685_ Knocked back. 09686_ Acquired Unknown Power Core. 09686_ Identified Mic. Nuclear Core. 09687_ Hacking Suite destroyed. 09687_ Knocked back. 09690_ Acquired Imp. Surge Thruster. 09690_ ALERT: Hostiles spotted, dispatching reinforcements to Terminal F005. 09693_ Imp. Surge Thruster destroyed. 09693_ VTOL Module destroyed. 09693_ Mic. Nuclear Core destroyed. 09693_ Critical hit (Blast). 09693_ Knocked back. 09694_ U-05 Engineer lays Concrete. 09695_ ALERT: Significant disruption in Zone 8R, assault force dispatched. 09695_ U-05 Engineer lays Concrete. 09699_ Slug penetrates Wall. 09699_ Construction Platform disabled. 09700_ U-05 Engineer lays Concrete. 09701_ Spear severed. Map ----- +----------------------------------------------------+ | ?????????????????? !!?????????????????? | | ?????????????????? ?????????????????? | | ?????????????????? ""????????????????? | | ?????????????????? ""????????????????? | | ?????????????????? """???????????????? | | ??????????????????# #??????????? | | ??????????????????# """ #??????????? | | ??????????????????# """ #??????????? | | ??????????????????+ """ #??????????? | | ??????????????????# #??????????? | | ??????????????????# """ #??????????? | | ??????????????????# """ #??????????? | | ??????????????????# """ #??????????? | | ???????##########?# #??????????? | | ???????# ### """ #??????????? | | ???????# """ #??????????? | | ???????# """ #??????????? | | ???????##^ """" #??????????? | | ????????# """" """ #??????????? | | ????????# """" """ #??????????? | | ????????# """" """ #########??? | | ?????#### """" | | ?????# """" ######?????? | | ?????# ######??????????? | | ?????# """" ###/############???????? | | ?????# """" @# #???????? | | ?????# """" c# """" """" ##??????? | | ?????# """" # """" """" ##??????? | | ?????# """" # """" """" !##??????? | | ?????# """" # """" """" #???????? | | ?????# # #???? ??? | | ?????# ###+#####+#######??? ?? | | ?????# ##### ## # #????##??"T"?? | | ?????# #???# ## """ # #????????""??? | | ?????# #???# ## """ # #?######? ??? | | ######+##### ## """ # #?# ##"#### | | # [ ## ## # ### | | #]/ ## ## """ # | | # " " " " ## ## """ / | | # " " " " ## ## """ # | | # " " " " # # ## # # = | | # " " " " # # """ ##?### ##### | | # " " " " # # """ #??# #???? | | # " " " " + s # """ #??# #???? | | # " " " " # # #??#% / #???? | | # " " " " # p # #??###% #???? | | # " " " " # ########????#! #???? | | # # #?????????### ###?? | | # ]# ########### #?? | | #[[[ ! # #?? | +----------------------------------------------------+ Best States ------------- Heat Dissipation 64 Energy Generation 21 Energy Capacity 310 Matter Stores 300 Matter Capacity 300 Sight Range 22 Robot Scan Range 16 Terrain Scan Density 10 Armor Coverage 675 Resistance: EM 15 Utility Shielding 66 Weapon Shielding 66 Weapon Cycling 15 Evasion (%) 63 Armor Integrity Analysis 30 Recoil Reduction 4 Kinecelleration 30 Offensive Hacking 10 Defensive Hacking 10 Item Schematics ----------------- None Robot Schematics ------------------ None Fabricated ------------ Nothing Alien Tech Used ----------------- None Achievements -------------- It Was An Accident, I Swear Project G-00 Z1$+NX3F=JRE3_ZNQR Challenges ------------ None Game ------ Seed CentriumSmartbombBank Manual? 0 Play Time 01:44:19 Cumulative 86.3 hours Start 2024.03.31 @ 17:06:11 End 2024.03.31 @ 19:05:57 Sessions 1 Manual Loads 0 Difficulty Rogue Special Mode None Game No. 80 Rogue 80 Adventurer 0 Explorer 0 Win Type - Total 2 Types 2/0/0/0/0/0/0/0/0 Lore% 39 Gallery% 56 Achievement% 42 Wizard Run 0 Options --------- Layout 1 ASCII 0 Keyboard 1 Movement Numpad Keybinds 0 Fullscreen 1 Font 32/SmallcapsGlow Map View 77x35 Zoom Use 0% Tactical HUD 1 Map Filters NONE Filters NONE Steam 1 RUN: 48aa7b55-1d44-4181-b9de-674228240c07